fUSD/lending_fUSD_20250623
["ID","MTS","AMOUNT","RATE_DAILY","PERIOD"]
[367054113,1750639834307,-1500.0,0.000347,12]
[367054116,1750639834319,-500.0,0.00034724,2]
[367054117,1750639834330,-839.0,0.00034724,2]
[367054119,1750639834340,-500.0,0.00034727,2]
[367054121,1750639834349,-254.24211024,0.00034727,2]
[367054123,1750639834358,-150.0,0.00034727,2]
[367054125,1750639834368,-500.0,0.00034727,2]
[367054127,1750639834378,-500.0,0.00034727,2]
[367054129,1750639834387,-3348.99123843,0.00034732,2]
[367054132,1750639834397,-402.37,0.00034739,2]
[367054134,1750639834407,-402.37,0.00034739,2]
[367054136,1750639834416,-662.73,0.00034739,2]
[367054137,1750639834425,-402.37,0.0003474,2]
[367054139,1750639834435,-402.37,0.00034741,2]
[367054141,1750639834444,-402.37,0.00034741,2]
[367054143,1750639834453,-662.73,0.00034741,2]
[367054145,1750639834462,-150.51,0.00034748,2]
[367054147,1750639834471,-21939.9541505,0.00034749,2]
[367054149,1750639834480,-71996.627084,0.00034749,2]
[367054151,1750639834489,-53997.470313,0.0003475,2]
[367054153,1750639834498,-150.51,0.0003475,2]
[367054155,1750639834507,-150.51,0.0003475,2]
[367054157,1750639834516,-1322.10928591,0.0003475,19]
[367054159,1750639834525,-61163.05134052,0.0003475,19]
[367054221,1750639835112,-8836.48017089,0.0003475,19]
[367054224,1750639835123,-1200.0,0.0003475,19]
[367054226,1750639835134,-285.71773869,0.0003475,19]
[367054520,1750639838165,-386.3068,0.0003466,2]
[367054522,1750639838175,-549.75133778,0.00034749,7]
[367054524,1750639838186,-500.0,0.00034749,7]
[367054526,1750639838196,-549.75133778,0.00034749,7]
[367054528,1750639838206,-549.75133778,0.00034749,7]
[367054530,1750639838216,-159.92161504,0.00034749,7]
[367054532,1750639838226,-549.75133778,0.00034749,7]
[367054534,1750639838237,-549.75133778,0.00034749,7]
[367054536,1750639838246,-549.75133778,0.00034749,7]
[367054538,1750639838256,-549.75133778,0.00034749,7]
[367054540,1750639838265,-549.75133778,0.00034749,7]
[367054542,1750639838275,-549.75133778,0.00034749,7]
[367054544,1750639838284,-549.75133778,0.00034749,7]
[367054546,1750639838294,-549.75133778,0.00034749,7]
[367054548,1750639838304,-549.75133778,0.00034749,7]
[367054550,1750639838316,-549.75133778,0.00034749,7]
[367054552,1750639838326,-549.75133778,0.00034749,7]
[367054554,1750639838336,-549.75133778,0.00034749,7]
[367054556,1750639838346,-549.75133778,0.00034749,7]
[367054558,1750639838355,-549.75133778,0.00034749,7]
[367054560,1750639838364,-549.75133778,0.00034749,7]
[367054562,1750639838373,-549.75133778,0.00034749,7]
[367054564,1750639838384,-549.75133778,0.00034749,7]
[367054566,1750639838393,-141.44972936,0.00034749,7]
[367054748,1750639840230,-408.30160842,0.00034749,7]
[367054750,1750639840240,-549.75133778,0.00034749,7]
[367054752,1750639840251,-549.75133778,0.00034749,7]
[367054754,1750639840260,-492.19571602,0.00034749,7]
[367054839,1750639841132,-57.55562176,0.00034749,7]
[367054841,1750639841143,-499.29920276,0.00034749,7]
[367054845,1750639841175,-50.45213502,0.00034749,7]
[367054848,1750639841186,-549.75133778,0.00034749,7]
[367054850,1750639841196,-549.75133778,0.00034749,7]
[367054852,1750639841206,-549.75133778,0.00034749,7]
[367054854,1750639841216,-549.75133778,0.00034749,7]
[367054856,1750639841227,-549.75133778,0.00034749,7]
[367054858,1750639841237,-549.75133778,0.00034749,7]
[367054860,1750639841247,-549.75133778,0.00034749,7]
[367054862,1750639841257,-549.75133778,0.00034749,7]
[367054864,1750639841267,-549.75133778,0.00034749,7]
[367054866,1750639841278,-549.75133778,0.00034749,7]
[367054868,1750639841288,-549.75133778,0.00034749,7]
[367054870,1750639841298,-549.75133778,0.00034749,7]
[367054872,1750639841307,-549.75133778,0.00034749,7]
[367054874,1750639841318,-549.75133778,0.00034749,7]
[367054876,1750639841328,-549.75133778,0.00034749,7]
[367054878,1750639841339,-549.75133778,0.00034749,7]
[367054880,1750639841349,-549.75133778,0.00034749,7]
[367054882,1750639841359,-549.75133778,0.00034749,7]
[367054884,1750639841369,-549.75133778,0.00034749,7]
[367054886,1750639841379,-549.75133778,0.00034749,7]
[367054888,1750639841389,-549.75133778,0.00034749,7]
[367054890,1750639841399,-549.75133778,0.00034749,7]
[367054892,1750639841410,-549.75133778,0.00034749,7]
[367054894,1750639841420,-549.75133778,0.00034749,7]
[367054896,1750639841430,-549.75133778,0.00034749,7]
[367054898,1750639841440,-549.75133778,0.00034749,7]
[367054900,1750639841450,-549.75133778,0.00034749,7]
[367054902,1750639841460,-549.75133778,0.00034749,7]
[367054904,1750639841469,-549.75133778,0.00034749,7]
[367054906,1750639841480,-549.75133778,0.00034749,7]
[367054908,1750639841490,-549.75133778,0.00034749,7]
[367054910,1750639841501,-549.75133778,0.00034749,7]
[367054912,1750639841511,-549.75133778,0.00034749,7]
[367054914,1750639841521,-549.75133778,0.00034749,7]
[367054916,1750639841531,-549.75133778,0.00034749,7]
[367054918,1750639841541,-549.75133778,0.00034749,7]
[367054920,1750639841551,-549.75133778,0.00034749,7]
[367054922,1750639841561,-549.75133778,0.00034749,7]
[367054924,1750639841571,-549.75133778,0.00034749,7]
[367054926,1750639841581,-549.75133778,0.00034749,7]
[367054928,1750639841591,-36.92443568,0.00034749,7]
[367054940,1750639843659,-311.24814302,0.00034749,7]
[367054941,1750639843690,-201.57875908,0.00034749,7]
[367054942,1750639843701,-3852.11318092,0.0003475,19]
[367055069,1750639846275,-500.0,0.00034749,7]
[367055071,1750639846284,-500.0,0.00034749,7]
[367055073,1750639846293,-500.0,0.00034749,7]
[367055075,1750639846303,-150.78381267,0.00034749,7]
[367055080,1750639846346,-446.56281749,0.00034749,7]
[367055083,1750639846356,-4820.65909174,0.0003475,19]
[367055087,1750639846385,-78328.53429653,0.0003475,19]
[367055089,1750639846394,-500.0,0.00034751,2]
[367055091,1750639846404,-839.0,0.00034751,2]
[367055093,1750639846413,-11956.91387529,0.00034751,2]
[367055120,1750639846665,-51972.09504499,0.00034751,2]
[367055122,1750639846676,-1762.02344664,0.00034751,2]
[367059689,1750640034738,158.75,0.00013699,2]
[367059719,1750640973254,158.75,0.00013699,2]
[367059733,1750641032296,-203.0,0.00025596,2]
[367059734,1750641032305,-203.0,0.00028463,6]
[367059735,1750641032314,-300.0,0.00030592,2]
[367059736,1750641032323,-368.0,0.00030592,2]
[367059737,1750641032334,-220.72101519,0.00030592,2]
[367059738,1750641032344,-293.405753,0.0003076,2]
[367059739,1750641032353,-210.0,0.00031071,2]
[367059740,1750641032362,-300.0,0.00031212,6]
[367059741,1750641032371,-203.0,0.0003133,11]
[367059742,1750641032381,-300.0,0.00031455,120]
[367059743,1750641032390,-250.0,0.00031455,2]
[367059744,1750641032400,-1000.0,0.000315,2]
[367059745,1750641032409,-300.0,0.000315,2]
[367059746,1750641032418,-1600.0,0.00032456,3]
[367059747,1750641032428,-300.0,0.00032457,3]
[367059748,1750641032437,-150.0,0.00032457,2]
[367059749,1750641032446,-400.0,0.00032457,2]
[367059750,1750641032456,-600.0,0.00032457,3]
[367059751,1750641032465,-720.0,0.00032457,3]
[367059752,1750641032475,-150.99,0.00032458,2]
[367059753,1750641032484,-3437.08,0.00032458,20]
[367059754,1750641032494,-150.99,0.00032458,30]
[367059755,1750641032503,-6637.57592522,0.00032458,2]
[367059756,1750641032514,-2088.32540325,0.00032458,2]
[367059757,1750641032540,-339.17912446,0.00032458,2]
[367059758,1750641032566,-934.90954707,0.00032458,2]
[367059759,1750641032575,-1794.96212203,0.00032458,2]
[367059760,1750641032587,-2904.59787797,0.00032458,2]
[367059761,1750641032597,-156.47,0.00032505,2]
[367059762,1750641032608,-155.1,0.00032622,2]
[367059763,1750641032619,-300.0,0.00032622,7]
[367059764,1750641032628,-210.0,0.00032622,7]
[367059765,1750641032637,-300.0,0.00032627,120]
[367059766,1750641032647,-250.0,0.00032627,2]
[367059767,1750641032658,-166.0,0.0003263,15]
[367059768,1750641032667,-166.0,0.0003263,120]
[367059769,1750641032676,-166.0,0.0003263,120]
[367059770,1750641032687,-173.77,0.0003263,45]
[367059771,1750641032696,-250.0,0.0003269,2]
[367059772,1750641032706,-286.75,0.00032716,2]
[367059774,1750641032715,-230.65,0.00032747,2]
[367059776,1750641032725,-1000.0,0.00032789,2]
[367059777,1750641032734,-637.84,0.00032811,120]
[367059778,1750641032743,-280.288,0.00032811,33]
[367059779,1750641032752,-216.57809213,0.000329,27]
[367059780,1750641032762,-8091.9,0.00032969,2]
[367059781,1750641032771,-666.0,0.00033046,2]
[367059782,1750641032781,-216.73,0.00033071,30]
[367059783,1750641032790,-640.161,0.00033161,2]
[367059784,1750641032799,-885.0,0.00033161,2]
[367059785,1750641032808,-855.0,0.00033161,2]
[367059786,1750641032818,-250.0,0.00033167,2]
[367059787,1750641032828,-163.38,0.00033426,2]
[367059788,1750641032837,-156.93,0.000335,31]
[367059789,1750641032847,-300.0,0.00033642,120]
[367059790,1750641032857,-300.0,0.00033753,2]
[367059791,1750641032866,-216.57809213,0.00033757,29]
[367059792,1750641032876,-1000.0,0.00033768,2]
[367059793,1750641032885,-312.470487,0.00033769,16]
[367059794,1750641032895,-163.6,0.00033798,2]
[367059795,1750641032904,-286.75,0.00033943,2]
[367059796,1750641032914,-163.6,0.00033978,2]
[367059797,1750641032923,-166.0,0.00034,30]
[367059798,1750641032933,-166.0,0.00034,7]
[367059799,1750641032942,-166.0,0.00034,7]
[367059800,1750641032952,-166.0,0.00034,10]
[367059801,1750641032965,-166.0,0.00034,19]
[367059802,1750641032975,-166.0,0.00034,7]
[367059803,1750641032985,-166.0,0.00034,15]
[367059804,1750641032994,-1000.0,0.00034,2]
[367059805,1750641033004,-216.03,0.00034086,2]
[367059806,1750641033013,-513.46029238,0.00034179,2]
[367059807,1750641033023,-203.0,0.00034197,16]
[367059808,1750641033033,-1000.0,0.0003429,2]
[367059809,1750641033043,-500.0,0.000343,12]
[367059810,1750641033053,-300.0,0.00034327,30]
[367059811,1750641033378,-1000.0,0.000344,12]
[367059812,1750641033388,-2532.5,0.0003441,2]
[367059813,1750641033397,-5871.09982554,0.0003445,7]
[367059814,1750641033407,-1600.0,0.000345,12]
[367059815,1750641033416,-5871.04,0.000345,7]
[367059816,1750641033426,-11559.94894746,0.00034514,2]
[367059817,1750641033436,-3411.96200944,0.00034558,2]
[367059818,1750641033445,-3316.98341624,0.00034583,2]
[367059819,1750641033455,-163.8452,0.00034588,2]
[367059820,1750641033464,-727.53583982,0.00034592,2]
[367059821,1750641033473,-27506.69391852,0.00034593,120]
[367059822,1750641033484,-3411.96200942,0.00034596,2]
[367059823,1750641033494,-2100.0,0.000346,12]
[367059824,1750641033503,-216.57809213,0.00034614,31]
[367059825,1750641033513,-288.9391706,0.00034624,15]
[367059826,1750641033523,-214.67747725,0.00034624,8]
[367059827,1750641033532,-214.67747725,0.00034629,8]
[367059828,1750641033546,-36140.3222,0.00034632,2]
[367059829,1750641033557,-1000.0,0.00034632,2]
[367059830,1750641033566,-712.45,0.00034633,2]
[367059831,1750641033576,-3411.96200942,0.00034634,2]
[367059832,1750641033587,-214.67747725,0.00034634,8]
[367059833,1750641033596,-4363.8843,0.00034635,2]
[367059834,1750641033616,-193.76150324,0.00034641,7]
[367059835,1750641033632,-448.1988,0.00034641,2]
[367059836,1750641033642,-300.0,0.0003465,120]
[367059837,1750641033652,-250.0,0.0003465,2]
[367059838,1750641033662,-54841.9752,0.0003465,2]
[367059839,1750641033671,-170.10550219,0.00034661,2]
[367059840,1750641033683,-3411.96200942,0.00034672,2]
[367059841,1750641033693,-166.72,0.00034687,2]
[367059842,1750641033703,-166.0,0.000347,30]
[367059843,1750641033712,-166.0,0.000347,31]
[367059844,1750641033722,-166.0,0.000347,33]
[367059845,1750641033731,-2700.0,0.000347,12]
[367059846,1750641033741,-23484.16,0.000347,7]
[367059848,1750641033750,-166.0,0.000347,20]
[367059850,1750641033760,-166.0,0.000347,19]
[367059852,1750641033770,-3411.96200942,0.0003471,2]
[367059853,1750641033780,-603.32,0.00034712,7]
[367059854,1750641033789,-953.14,0.00034712,7]
[367059855,1750641033799,-1208.94,0.00034712,7]
[367059856,1750641033808,-1604.85,0.00034712,7]
[367059857,1750641033818,-477.39257535,0.00034712,7]
[367059858,1750641033941,-12.60742465,0.00034712,7]
[367059859,1750641033950,-490.0,0.00034712,7]
[367059860,1750641033960,-490.0,0.00034712,7]
[367059861,1750641033969,-70.83766929,0.00034712,7]
[367059862,1750641034036,-419.16233071,0.00034712,7]
[367059863,1750641034046,-35.76296148,0.00034712,7]
[367059864,1750641034057,-629.17442911,0.00034712,7]
[367059865,1750641034095,-100.30260941,0.00034712,7]
[367059866,1750641034105,-1602.44,0.00034712,7]
[367059867,1750641034114,-500.0,0.00034712,2]
[367059868,1750641034123,-42.58323056,0.00034712,7]
[367059869,1750641034135,-447.41676944,0.00034712,7]
[367059870,1750641034145,-6.80182661,0.00034712,7]
[367059871,1750641034156,-1200.0,0.00034712,7]
[367059899,1750641038470,-480.51817339,0.00034712,7]
[367059900,1750641038480,-490.0,0.00034712,7]
[367059902,1750641038489,-1303.7,0.00034712,2]
[367059903,1750641038498,-490.0,0.00034712,7]
[367059905,1750641038507,-544.79,0.00034712,7]
[367059907,1750641038517,-43329.5802732,0.00034713,2]
[367059908,1750641038526,-7282.56816663,0.00034714,2]
[367060376,1750641043500,-1050.0,0.00034613,2]
[367060392,1750641043664,-2441.02623049,0.00034613,2]
[367060393,1750641043673,-403.24411114,0.00034712,7]
[367060683,1750641046602,-1162.52757607,0.00034645,2]
[367060685,1750641046616,-1006.96882546,0.00034645,2]
[367061049,1750642232637,-203.0,0.00022596,2]
[367061050,1750642232648,-930.24290978,0.000232,2]
[367061051,1750642232688,-194.00229658,0.000232,2]
[367061052,1750642232697,-150.0,0.00023288,2]
[367061053,1750642232707,-150.25722535,0.00023836,2]
[367061054,1750642232717,-145.36826822,0.00026752,8]
[367061055,1750642232729,-57.63173178,0.00026752,8]
[367061056,1750642232739,-203.0,0.00030908,14]
[367061057,1750642232748,-489.999999,0.0003121,2]
[367061058,1750642232758,-886.979141,0.00031527,2]
[367061059,1750642232767,-1009.99172217,0.00032219,2]
[367061060,1750642232779,-617.9141118,0.00032219,2]
[367061064,1750642237549,-554.09416603,0.00032219,2]
[367061065,1750642237559,-50.34583397,0.00032325,3]
[367061247,1750642240059,-101.65416603,0.00032325,3]
[367061249,1750642240069,-1398.34583397,0.0003272,7]
[367061531,1750642243029,-440.58890456,0.0003272,7]
[367061533,1750642243040,-343.06526147,0.0003272,7]
[367061535,1750642243049,-1600.0,0.00032777,3]
[367061537,1750642243059,-1010.03124978,0.00032779,2]
[367061801,1750642245744,-522.31482734,0.00032779,2]
[367062037,1750643267184,206.35,0.00013699,2]
[367062079,1750643431637,-776.36651409,0.00025,7]
[367062081,1750643431646,-250.0,0.000288,2]
[367062083,1750643431656,-5389.0,0.0003,7]
[367062085,1750643431665,-230.89348115,0.00030137,2]
[367062086,1750643431675,-205.27914799,0.000309,23]
[367062087,1750643431684,-202.0,0.0003159,2]
[367062088,1750643431693,-200.0,0.00031854,7]
[367062089,1750643431703,-204.26,0.0003188,2]
[367062090,1750643431712,-250.0,0.0003189,2]
[367062091,1750643431721,-666.0,0.00031895,2]
[367062092,1750643431730,-205.27914794,0.000319,25]
[367062093,1750643431739,-1600.0,0.00032063,3]
[367062094,1750643431748,-207.0,0.00032064,2]
[367062095,1750643431757,-446.49,0.0003219,2]
[367062096,1750643431767,-193.0,0.00032236,7]
[367062097,1750643431776,-154.91,0.00032263,2]
[367062098,1750643431785,-297.18,0.00032299,2]
[367062099,1750643431794,-10930.82419266,0.00032318,19]
[367062100,1750643431806,-10691.84741458,0.00032318,19]
[367062101,1750643431827,-768.7,0.00032318,19]
[367062102,1750643431840,-1157.16140376,0.00032318,19]
[367062103,1750643431852,-634.93992459,0.00032318,19]
[367062104,1750643431863,-1573.8915848,0.00032318,19]
[367062105,1750643431889,-771.42883945,0.00032318,19]
[367062140,1750643437831,-59057.2542044,0.00032318,19]
[367062141,1750643437841,-709.99163105,0.00032318,19]
[367062142,1750643437851,-262.0,0.00032318,3]
[367062143,1750643437860,-2528.1,0.00032319,2]
[367062144,1750643437870,-1940.17,0.00032319,2]
[367062145,1750643437879,-208.81,0.00032443,2]
[367062146,1750643437888,-192.2,0.0003245,2]
[367062147,1750643437897,-300.0,0.00032455,2]
[367062148,1750643437907,-532.6,0.000325,15]
[367062149,1750643437916,-584.11,0.00032629,120]
[367062150,1750643437925,-202.0,0.0003263,2]
[367062151,1750643437935,-930.986749,0.000327,10]
[367062152,1750643437944,-2959.16354342,0.0003273,2]
[367062153,1750643437954,-250.0,0.00032739,2]
[367062154,1750643437963,-300.0,0.00032739,120]
[367062155,1750643437972,-834.42866044,0.00032772,2]
[367062156,1750643437982,-155.2,0.00032777,2]
[367062157,1750643437991,-254.0,0.00032778,2]
[367062158,1750643438001,-14522.7667255,0.00032778,2]
[367062159,1750643438011,-649.65392288,0.00032779,2]
[367062160,1750643438020,-2036.64562,0.00032779,2]
[367062162,1750643438030,-150.0,0.0003278,2]
[367062164,1750643438039,-14734.1056099,0.00032785,2]
[367062166,1750643438048,-20000.0,0.000328,2]
[367062168,1750643438057,-283.122,0.0003283,33]
[367062170,1750643438068,-1017.89039126,0.000329,2]
[367062172,1750643438078,-205.27914794,0.000329,27]
[367062174,1750643438088,-189.63,0.00032904,30]
[367062175,1750643438097,-216.35,0.00032923,2]
[367062176,1750643438107,-216.35,0.00032931,2]
[367062177,1750643438116,-216.35,0.0003294,2]
[367062178,1750643438126,-216.35,0.00032949,2]
[367062179,1750643438135,-216.35,0.00032957,2]
[367062180,1750643438144,-216.35,0.00032966,2]
[367062181,1750643438154,-2959.16354341,0.00032971,2]
[367062182,1750643438163,-216.35,0.00032975,2]
[367062183,1750643438173,-216.35,0.00032983,2]
[367062184,1750643438182,-216.35,0.00032992,2]
[367062185,1750643438192,-1000.0,0.00032997,2]
[367062186,1750643438202,-1000.60599034,0.00033,4]
[367062187,1750643438212,-1002.0,0.00033,5]
[367062188,1750643438221,-216.35,0.00033001,2]
[367062189,1750643438231,-216.35,0.00033009,2]
[367062190,1750643438240,-216.35,0.00033018,2]
[367062191,1750643438250,-150.69,0.00033022,2]
[367062192,1750643438259,-216.35,0.00033027,2]
[367062193,1750643438268,-216.35,0.00033035,2]
[367062194,1750643438278,-216.35,0.00033044,2]
[367062195,1750643438288,-216.35,0.00033053,2]
[367062196,1750643438297,-237.34,0.00033057,2]
[367062198,1750643438307,-216.35,0.00033061,2]
[367062200,1750643438316,-335.21099285,0.00033068,30]
[367062202,1750643438325,-216.35,0.0003307,2]
[367062204,1750643438335,-216.35,0.00033079,2]
[367062206,1750643438348,-216.35,0.00033087,2]
[367062208,1750643438360,-2751.0,0.00033102,120]
[367062210,1750643438369,-335.21099285,0.00033205,30]
[367062212,1750643438379,-2959.16354341,0.00033212,2]
[367062214,1750643438392,-1930.1604957,0.000333,2]
[367062216,1750643438405,-335.21099285,0.00033342,30]
[367062218,1750643438415,-2182.0,0.00033399,7]
[367062220,1750643438425,-2959.16354341,0.00033453,2]
[367062222,1750643438435,-2236.29657091,0.00033475,30]
[367062224,1750643438446,-335.21099285,0.00033479,30]
[367062226,1750643438455,-157.96,0.000335,31]
[367062228,1750643438464,-297.18,0.0003351,2]
[367062230,1750643438474,-335.21099285,0.00033589,30]
[367062232,1750643438483,-153.3,0.0003363,120]
[367062234,1750643438492,-202.0,0.0003366,2]
[367062236,1750643438503,-2959.16354341,0.00033694,2]
[367062238,1750643438512,-173.66,0.00033699,2]
[367062240,1750643438521,-151.2,0.00033699,2]
[367062242,1750643438531,-360.83,0.00033699,2]
[367062244,1750643438540,-151.06,0.00033699,2]
[367062246,1750643438550,-463.26,0.00033699,2]
[367062248,1750643438560,-1397.16,0.00033702,2]
[367062250,1750643438569,-237.423335,0.00033708,16]
[367062252,1750643438579,-335.21099285,0.00033726,30]
[367062254,1750643438589,-183.64,0.0003375,2]
[367062256,1750643438599,-335.21099285,0.00033863,30]
[367062258,1750643438608,-205.27914794,0.000339,29]
[367062260,1750643438616,-1940.17,0.00033935,2]
[367062262,1750643438626,-2959.16354341,0.00033936,2]
[367062263,1750643438635,-200.45,0.00034,2]
[367062265,1750643438645,-335.21099285,0.00034,30]
[367062267,1750643438654,-841.0,0.00034,2]
[367062269,1750643438664,-2013.07,0.00034,8]
[367062270,1750643438675,-335.21099285,0.00034137,30]
[367062272,1750643438687,-2959.16354341,0.00034177,2]
[367062274,1750643438697,-250.21427052,0.000342,2]
[367062276,1750643438707,-152.0,0.00034203,4]
[367062278,1750643438717,-5001.64,0.00034219,2]
[367062280,1750643438726,-2993.01,0.0003422,2]
[367062282,1750643438735,-2182.0,0.00034241,2]
[367062284,1750643438745,-335.21099285,0.00034274,30]
[367062286,1750643438755,-3136.05,0.00034279,2]
[367062288,1750643438764,-200.0,0.000343,12]
[367062290,1750643438773,-300.64,0.00034339,2]
[367062292,1750643438782,-500.0,0.000344,12]
[367062294,1750643438791,-335.21099285,0.00034411,30]
[367062296,1750643438801,-2959.16354341,0.00034418,2]
[367062298,1750643438810,-2110.0,0.00034438,2]
[367062300,1750643438819,-200.0,0.00034472,10]
[367062302,1750643438828,-200.0,0.00034473,10]
[367062303,1750643438837,-200.0,0.00034473,10]
[367062305,1750643438846,-800.0,0.000345,12]
[367062307,1750643438856,-990.67816118,0.000345,7]
[367062309,1750643438865,-335.21099285,0.00034521,30]
[367062311,1750643438874,-2994.64309755,0.0003457,2]
[367062313,1750643438883,-323.88289563,0.00034579,15]
[367062315,1750643438892,-4854.49,0.0003458,2]
[367062317,1750643438901,-320.10032255,0.0003458,8]
[367062319,1750643438910,-404.4791,0.00034582,2]
[367062321,1750643438920,-320.10032255,0.00034583,8]
[367062323,1750643438931,-2418.7367,0.00034585,3]
[367062325,1750643438939,-320.10032255,0.00034586,8]
[367062327,1750643438948,-189.22010258,0.00034588,7]
[367062329,1750643438958,-171.35235216,0.00034597,2]
[367062331,1750643438967,-2004.15,0.000346,7]
[367062333,1750643438976,-1000.0,0.000346,12]
[367062335,1750643438986,-2994.6430975,0.00034607,2]
[367062337,1750643438995,-989.0,0.00034607,5]
[367062339,1750643439004,-2240.0,0.00034625,3]
[367062341,1750643439013,-2994.6430975,0.00034643,2]
[367062343,1750643439022,-272.87316437,0.00034648,120]
[367062345,1750643439032,-490.0,0.00034649,7]
[367062347,1750643439041,-354.91752311,0.00034649,7]
[367062348,1750643439050,-490.0,0.00034649,7]
[367062350,1750643439059,-493.53475917,0.00034649,7]
[367062352,1750643439068,-490.0,0.00034649,7]
[367062354,1750643439078,-490.0,0.00034649,7]
[367062356,1750643439091,-503.13,0.00034649,7]
[367062358,1750643439103,-490.0,0.00034649,7]
[367062360,1750643439113,-1246.05,0.00034649,7]
[367062362,1750643439123,-490.0,0.00034649,7]
[367062364,1750643439132,-1615.21,0.00034649,7]
[367062366,1750643439141,-913.38,0.00034649,7]
[367062368,1750643439151,-490.0,0.00034649,7]
[367062370,1750643439160,-500.0,0.00034649,2]
[367062372,1750643439170,-1613.05,0.00034649,7]
[367062374,1750643439179,-1249.38,0.00034649,2]
[367062376,1750643439188,-490.0,0.00034649,7]
[367062378,1750643439197,-1619.56,0.00034649,7]
[367062380,1750643439207,-1416.56,0.00034649,2]
[367062382,1750643439216,-499.99,0.00034649,2]
[367062384,1750643439225,-299.3,0.00034649,2]
[367062386,1750643439235,-150.99,0.00034649,2]
[367062388,1750643439244,-6698.8,0.00034649,2]
[367062390,1750643439253,-999.99,0.00034649,2]
[367062391,1750643439262,-1419.18,0.00034649,2]
[367062393,1750643439271,-150.99,0.00034649,30]
[367062395,1750643439280,-155.120347,0.0003465,7]
[367062397,1750643439289,-151.0,0.0003465,7]
[367062399,1750643439298,-2959.16354341,0.00034659,2]
[367062401,1750643439308,-189.22010257,0.00034666,7]
[367062403,1750643439317,-88066.912826,0.00034669,2]
[367062405,1750643439327,-151.0,0.00034669,7]
[367062407,1750643439335,-66050.1846195,0.0003467,2]
[367062409,1750643439348,-151.0,0.0003467,7]
[367062411,1750643439358,-150.81,0.0003467,2]
[367062413,1750643439367,-533.32574372,0.00034673,5]
[367062414,1750643439379,-500.0,0.00034673,5]
[367062416,1750643439390,-323.88289561,0.00034673,15]
[367062418,1750643439400,-580.31,0.00034674,7]
[367062420,1750643439409,-490.85157049,0.00034674,7]
[367062422,1750643439419,-2122.85,0.00034674,7]
[367062424,1750643439430,-490.0,0.00034674,7]
[367062426,1750643439439,-608.24,0.00034674,7]
[367062428,1750643439449,-490.0,0.00034674,7]
[367062430,1750643439458,-1762.05,0.00034674,7]
[367062432,1750643439468,-909.83,0.00034674,7]
[367062434,1750643439479,-490.0,0.00034674,7]
[367062436,1750643439489,-490.0,0.00034674,7]
[367062438,1750643439498,-1863.32,0.00034674,7]
[367062440,1750643439508,-501.41927299,0.00034674,7]
[367062442,1750643439518,-4602.17,0.00034674,7]
[367062444,1750643439527,-1863.8,0.00034674,7]
[367062446,1750643439537,-734.84,0.00034674,7]
[367062449,1750643439546,-490.0,0.00034674,7]
[367062451,1750643439555,-1897.7,0.00034674,7]
[367062453,1750643439566,-882.37,0.00034674,7]
[367062455,1750643439576,-1273.94,0.00034674,7]
[367062457,1750643439585,-1932.04,0.00034674,7]
[367062459,1750643439594,-493.65217078,0.00034674,7]
[367062461,1750643439603,-2029.27,0.00034674,7]
[367062462,1750643439612,-1651.33,0.00034674,7]
[367062464,1750643439621,-490.0,0.00034674,7]
[367062466,1750643439630,-10088.43,0.00034674,7]
[367062468,1750643439639,-988.95,0.00034674,7]
[367062470,1750643439648,-1344.45,0.00034674,7]
[367062473,1750643439657,-2297.76,0.00034674,7]
[367062475,1750643439666,-3364.81,0.00034674,7]